[Event "4NCL Div 1 2024-25"]
[Site "England"]
[Date "2025.01.26"]
[Round "4.9"]
[White "Lupulescu, Constantin"]
[Black "Bazakutsa, Svyatoslav"]
[Result "1-0"]
[Annotator "TA"]
[ECO "E74"]
[WhiteElo "2597"]
[BlackElo "2486"]
[PlyCount "127"]
[EventDate "2024.11.23"]
[EventType "team-tourn"]
[EventCountry "ENG"]
[SourceTitle "playchess.com"]
[Source "ChessBase"]
[SourceQuality "1"]
[TimeControl "40/6000+30:3000+30"]

{[%evp 17,127,20,22,8,11,14,22,33,19,32,27,43,41,31,65,55,65,62,51,70,82,83,72,80,104,109,110,110,94,92,133,116,143,143,166,145,177,184,213,140,165,146,209,144,220,222,271,266,253,262,267,268,233,212,229,225,219,226,341,247,247,249,253,214,440,448,454,407,471,471,471,458,455,449,522,522,522,522,522,515,507,493,445,270,12831,12815,12799,12799,29948,29950,29949,12757,29944,8112,29971,29972,29975,29978,29978,29980,29980,29981,29981,29982,29982,29981,29981,29982,29982,29983,29983,29984]} 1. d4 {[%emt 0:10:03]} Nf6 {[%emt 0:10:55]} 2. c4 {[%emt 0:00:06]} g6 {[%emt 0:00:04]} 3. Nc3 {[%emt 0:00:05]} Bg7 {[%emt 0:00:06]} 4. e4 {[%emt 0:00:03]} d6 {[%emt 0:00:07]} 5. Be2 {[%emt 0:00:05]} O-O {[%emt 0:00:07]} 6. Be3 {[%emt 0:00:02]} c5 {[%emt 0:00:07]} 7. dxc5 {[%emt 0:00:07]} Qa5 {[%emt 0:02:58]} 8. Bd2 {[%emt 0:00:09]} Qxc5 {[%emt 0:02:34]} 9. Nf3 {[%emt 0:00:43]} Bg4 {[%emt 0:01:42]} 10. Be3 {[%emt 0:06:48] E74: King's Indian: Averbakh Variation: 6...c5.} Qa5 {[%emt 0:06:55]} 11. O-O {[%emt 0:00:54]} Rc8 {[%emt 0:05:58]} 12. a3 {[%emt 0:10:01] The position is equal.} Nc6 {[%emt 0:06:38]} 13. b4 {[%emt 0:02:26]} Qd8 {[%emt 0:00:59]} 14. Qb3 {[%emt 0:04:39]} Nd7 {[%emt 0:09:59]} 15. Rad1 {[%emt 0:06:09]} a5 $146 {[%emt 0:02:07]} (15... Nce5 16. Nxe5 Nxe5 17. f3 Be6 18. Nd5 Bxd5 19. Rxd5 Qe8 20. Rfd1 Rc7 21. c5 dxc5 {1-0 Lalic,B (2585)-Krakops,M (2440) Linares Anibal op 04th 1997 (2)}) 16. h3 {[%emt 0:05:58] White is more active.} Bxf3 {[%emt 0:09:09]} 17. Bxf3 {[%emt 0:00:19]} axb4 {[%emt 0:01:04]} 18. axb4 {[%emt 0:00:04]} Qf8 {[%emt 0:01:08]} 19. Be2 {[%emt 0:04:50]} Bxc3 {[%emt 0:10:41]} 20. Qxc3 {[%emt 0:00:09]} Ra2 {[%emt 0:00:07]} 21. Bg4 {[%emt 0:09:38]} Nce5 {[%emt 0:09:33][%cal Bc6e5,Be5d7,Bd7f6][%mdl 32]} 22. Bxd7 {[%emt 0:00:27]} Nxd7 {[%emt 0:00:12]} 23. c5 {[%emt 0:00:07]} Nf6 {[%emt 0:08:32]} 24. e5 {[%emt 0:04:21]} dxe5 {[%emt 0:01:47]} 25. Qxe5 {[%emt 0:00:16]} Ra6 {[%emt 0:00:20] Black is weak on the dark squares} 26. Rd3 {[%emt 0:10:51]} h5 {[%emt 0:03:06]} 27. b5 {[%emt 0:15:06]} Ra5 {[%emt 0:05:18]} 28. Qb2 {[%emt 0:01:08]} Qe8 {[%emt 0:04:28]} 29. Rb1 {[%emt 0:00:37]} Rca8 {[%emt 0:00:35]} (29... Ra4 $16 30. Qb3 Rca8) 30. Bd2 {[%emt 0:02:31]} Ra2 {[%emt 0:00:50]} (30... Ra4 $16 31. c6 bxc6) 31. Qe5 $18 {[%emt 0:02:49]} Rd8 {[%emt 0:03:00]} 32. Rxd8 {[%emt 0:02:43]} Qxd8 {[%emt 0:00:02]} 33. Bc3 {[%emt 0:12:46][%cal Bd2c3,Bc3d4,Bd4e3][%mdl 32]} Qd3 {[%emt 0:01:50]} 34. Re1 {[%emt 0:00:00]} Rc2 {[%emt 0:00:10]} 35. Bd4 {[%emt 0:00:00]} (35. Qxe7 Qxc3 (35... Rxc3 $2 {too greedy.} 36. Qxf6 $18) 36. Re3 Rc1+ (36... Qxc5 37. Qxf6 Qf8 38. Re7 $16) 37. Kh2 Qd4 $19 (37... Qxc5 38. Qxf6 Qf8 39. Qd4 $16)) 35... Rd2 {[%emt 0:00:30]} 36. Be3 {[%emt 0:00:00]} Rd1 {[%emt 0:03:25]} 37. Rxd1 {[%emt 0:00:00]} Qxd1+ {[%emt 0:00:01][%mdl 4096] Endgame KQB-KQN} 38. Kh2 {[%emt 0:00:00]} Qd7 {[%emt 0:00:23] [#]} 39. c6 $1 {[%emt 0:00:00][%mdl 512]} bxc6 {[%emt 0:00:12]} 40. b6 {[%emt 0:00:00]} Ne8 $2 {[%emt 0:02:04]} (40... Qd6 {keeps fighting.} 41. Qxd6 exd6) 41. Qb8 {[%emt 0:53:11]} Qd6+ {[%emt 0:39:27]} 42. Bf4 {[%emt 0:00:00]} Qxb8 {[%emt 0:00:08]} 43. Bxb8 {[%emt 0:00:00] Strongly threatening Be5. KB-KN. Black is a pawn up.} Nf6 {[%emt 0:00:06]} 44. b7 {[%emt 0:00:00]} Nd7 {[%emt 0:00:24] [#]} 45. Be5 {[%emt 0:00:00][%mdl 512]} f6 {[%emt 0:00:43]} (45... h4 46. b8=Q+) 46. b8=Q+ {[%emt 0:00:00]} (46. b8=B fxe5 (46... Nxe5 $2 47. Kg3 $19) 47. Bc7 h4 $19) 46... Nxb8 {[%emt 0:00:04]} 47. Bxb8 {[%emt 0:00:00] KB-KP} Kf7 {[%emt 0:00:10]} 48. Kg3 {[%emt 0:00:00]} Ke6 {[%emt 0:00:25]} 49. Bc7 {[%emt 0:00:00]} Kd7 {[%emt 0:01:35]} 50. Bb6 {[%emt 0:00:00]} e5 $2 {[%emt 0:00:34]} (50... Kd6 51. f4 c5) 51. f4 {[%emt 0:00:00]} Ke6 {[%emt 0:02:08]} 52. Kf3 {[%emt 0:00:00]} Kf5 {[%emt 0:02:09]} 53. fxe5 {[%emt 0:00:00]} Kxe5 {[%emt 0:00:42]} 54. Ke3 {[%emt 0:00:00] Bd4+ would kill now.} Kf5 {[%emt 0:06:15]} 55. Bd4 {[%emt 0:00:00]} g5 {[%emt 0:02:19]} 56. Kf3 {[%emt 0:01:59] White mates.} Ke6 {[%emt 0:00:47]} 57. g4 {[%emt 0:01:34]} f5 {[%emt 0:00:45]} 58. gxh5 {[%emt 0:00:14] KB-K3P} Kf7 {[%emt 0:00:01]} 59. Bc3 {[%emt 0:03:08]} c5 {[%emt 0:00:24][%cal Bc6c5,Bc5c4,Bc4c3,Bc3c2][%mdl 32]} 60. Bb2 {[%emt 0:00:04]} c4 {[%emt 0:00:14]} 61. Bc3 {[%emt 0:00:04]} Kg8 {[%emt 0:00:58]} 62. Bf6 {[%emt 0:00:05]} c3 {[%emt 0:00:20]} 63. Bxg5 {[%emt 0:00:08]} c2 {[%emt 0:00:05]} 64. Ke2 {[%emt 0:00:20] Weighted Error Value: White=0.05 (flawless) /Black=0.46  Mistake:       	---       	Black=4      Inaccurate:     	White=3     	Black=2      OK:         	White=25    	Black=10     Best:        	White=5     	Black=6} 1-0

[Event "4NCL Div 1 2024-25"]
[Site "England"]
[Date "2025.01.26"]
[Round "4.10"]
[White "Willow, Jonah B"]
[Black "Csonka, Balazs"]
[Result "1/2-1/2"]
[Annotator "TA"]
[ECO "C65"]
[WhiteElo "2454"]
[BlackElo "2473"]
[PlyCount "38"]
[EventDate "2024.11.23"]
[EventType "team-tourn"]
[EventCountry "ENG"]
[SourceTitle "playchess.com"]
[Source "ChessBase"]
[SourceQuality "1"]
[TimeControl "40/6000+30:3000+30"]

{[%evp 9,38,24,24,22,25,17,20,19,20,8,30,19,23,0,0,-13,12,14,13,7,21,17,12,0,0,0,0,0,0,0,-12]} 1. e4 {[%emt 0:12:59]} e5 {[%emt 0:10:11]} 2. Nf3 {[%emt 0:00:20]} Nc6 {[%emt 0:00:08]} 3. Bb5 {[%emt 0:00:14]} Nf6 {[%emt 0:00:09]} 4. d3 {[%emt 0:00:41]} Bc5 {[%emt 0:00:11]} 5. Bxc6 {[%emt 0:00:14]} dxc6 {[%emt 0:00:09]} 6. O-O {[%emt 0:00:09] C65: Ruy Lopez: Berlin Defence (3...Nf6), unusual lines and 4 0-0 Bc5.} (6. Nxe5 $2 {too greedy.} Qd4 7. Qe2 Qxe5 $19) 6... Qe7 {[%emt 0:01:11]} 7. Nbd2 {[%emt 0:00:58]} a5 {[%emt 0:01:41]} 8. Nc4 {[%emt 0:05:44]} Nd7 {[%emt 0:00:10]} 9. c3 {[%emt 0:08:43]} O-O {[%emt 0:00:55]} 10. Re1 {[%emt 0:02:06]} Rd8 $146 {[%emt 0:29:47]} (10... Qe6 11. b3 b5 12. Ne3 Re8 13. Nf5 Bf8 14. Be3 a4 15. Rb1 axb3 16. axb3 c5 {½-½ Giri,A (2752)-So,W (2752) Sinquefield Cup 10th 2023 (3)}) 11. d4 {[%emt 0:03:07]} exd4 {[%emt 0:01:10] The position is equal.} 12. cxd4 {[%emt 0:04:38]} Bb4 {[%emt 0:01:56]} 13. Re2 {[%emt 0:04:13]} Nb6 {[%emt 0:06:06]} 14. Nxb6 {[%emt 0:10:34]} cxb6 {[%emt 0:00:09]} 15. a3 {[%emt 0:00:38]} Bc5 {[%emt 0:09:48]} 16. Bg5 {[%emt 0:06:21]} f6 {[%emt 0:00:10]} 17. Bh4 {[%emt 0:00:04]} Qf7 {[%emt 0:06:08] Against Qb3} 18. Rd2 {[%emt 0:06:22]} Bf8 {[%emt 0:08:38]} 19. d5 {[%emt 0:06:55]} Bg4 {[%emt 0:04:38] An uneventful encounter.   Weighted Error Value: White=0.04 (flawless) /Black=0.03 (flawless)   Inaccurate:     	White=1     	---        OK:         	White=6     	Black=6      Best:        	---       	Black=1} 1/2-1/2

[Event "4NCL Div 1 2024-25"]
[Site "England"]
[Date "2025.01.26"]
[Round "4.11"]
[White "Royal, Shreyas"]
[Black "Czopor, Maciej"]
[Result "0-1"]
[Annotator "TA"]
[ECO "D41"]
[WhiteElo "2520"]
[BlackElo "2383"]
[PlyCount "126"]
[EventDate "2024.11.23"]
[EventType "team-tourn"]
[EventCountry "ENG"]
[SourceTitle "playchess.com"]
[Source "ChessBase"]
[SourceQuality "1"]
[TimeControl "40/6000+30:3000+30"]

{[%evp 19,126,17,7,0,0,-14,0,0,0,0,0,0,0,0,0,0,0,-2,0,-9,-8,-26,0,0,0,0,0,0,0,0,0,0,0,0,0,0,0,0,0,0,-2,0,-9,-50,-42,-139,-77,-95,-57,-96,-79,-79,-79,-181,-162,-185,-94,-104,-89,-89,-90,-90,-108,-132,-95,-111,-99,-136,-149,-150,-150,-144,-129,-139,-140,-152,-158,-155,-137,-144,-113,-187,-187,-229,-207,-287,-287,-287,-287,-338,-294,-366,-291,-301,-295,-313,-314,-577,-548,-607,-606,-584,-585,-572,-574,-29970,-29972,-29979,-29980]} 1. d4 {[%emt 0:10:03]} Nf6 {[%emt 0:13:56]} 2. c4 {[%emt 0:00:05]} e6 {[%emt 0:00:06]} 3. Nf3 {[%emt 0:00:31]} d5 {[%emt 0:00:10]} 4. Nc3 {[%emt 0:00:06]} c5 {[%emt 0:00:03]} 5. cxd5 {[%emt 0:00:05]} Nxd5 {[%emt 0:00:05]} 6. e4 {[%emt 0:00:27]} Nxc3 {[%emt 0:00:04]} 7. bxc3 {[%emt 0:00:08]} cxd4 {[%emt 0:00:20]} 8. cxd4 {[%emt 0:00:07]} Bb4+ {[%emt 0:00:04]} 9. Bd2 {[%emt 0:00:09]} Bxd2+ {[%emt 0:00:05]} 10. Qxd2 {[%emt 0:00:04]} O-O {[%emt 0:00:09]} 11. h4 {[%emt 0:00:08] D41: Queen's Gambit Declined: Semi-Tarrasch with 5 cxd5.} b6 {[%emt 0:01:16]} 12. Rd1 {[%emt 0:00:23]} Bb7 {[%emt 0:00:38]} 13. Bd3 {[%emt 0:00:08] The position is equal.} Nc6 {[%emt 0:13:01]} 14. Qe3 {[%emt 0:00:15]} Rc8 {[%emt 0:01:26]} 15. O-O {[%emt 0:00:18]} Re8 {[%emt 0:05:45][%cal Bf8e8,Be8e7,Be7d7][%mdl 32]} 16. h5 $146 {[%emt 0:07:25]} (16. Bb1 Na5 17. h5 Nc4 18. Qf4 h6 19. Rfe1 Qe7 20. e5 Red8 21. Be4 b5 22. d5 Bxd5 23. Bxd5 Rxd5 24. Rxd5 exd5 {½-½ Stocek,J (2585)-Prusikin,M (2540) EU-ch 6th Warsaw 2005 (13)}) 16... h6 {[%emt 0:08:44]} 17. Bb1 {[%emt 0:00:06]} Nb8 {[%emt 0:11:44]} 18. e5 {[%emt 0:12:53]} Nd7 {[%emt 0:00:17]} 19. Rfe1 {[%emt 0:00:40][%cal Bf1e1,Be1e4,Be4g4][%mdl 32]} Nf8 {[%emt 0:00:24]} 20. Qf4 {[%emt 0:04:22]} Re7 {[%emt 0:07:45]} 21. Nd2 {[%emt 0:02:59]} Rd7 {[%emt 0:02:44]} 22. Ne4 {[%emt 0:00:59]} Bxe4 {[%emt 0:00:12]} (22... Rxd4 $2 23. Rxd4 (23. Nf6+ Qxf6 24. Rxd4 Qxf4 $16) 23... Qc7 (23... Qxd4 $2 24. Nf6+ gxf6 25. Qxd4 $18) 24. Nd6 $18) 23. Rxe4 {[%emt 0:02:05]} Rc3 {[%emt 0:02:31]} 24. Qd2 {[%emt 0:05:10]} Rdc7 {[%emt 0:03:38]} 25. Rg4 {[%emt 0:00:10]} Kh8 {[%emt 0:00:05]} 26. Be4 {[%emt 0:03:05]} Qc8 {[%emt 0:02:09]} 27. Qf4 {[%emt 0:01:16]} Qe8 {[%emt 0:10:29]} 28. Kh2 {[%emt 0:06:26]} Nh7 {[%emt 0:05:34]} 29. d5 {[%emt 0:04:53]} f5 {[%emt 0:01:05]} 30. exf6 {[%emt 0:00:08] Counterplay Black} Nxf6 {[%emt 0:08:47] Successful Defense Black} (30... Qxh5+ 31. Rh4 e5 (31... Qxd1 $2 32. fxg7+ Rxg7 33. Rxh6 $18) 32. d6 (32. Rxh5 exf4 33. d6 Nxf6 $18) 32... Qxd1 33. Qxe5 gxf6 34. Qe8+ (34. dxc7 $2 fxe5 35. Rxh6 Rxc7 $19) 34... Kg7 35. Qg6+ (35. dxc7 Qd6+ 36. g3 f5 $18) 35... Kf8 36. dxc7 Qd6+ 37. f4 Rxc7 38. Qxh6+ Ke8 39. Bxh7 $18) 31. Bg6 {[%emt 0:01:30]} (31. dxe6 $5 R3c4 (31... Nxg4+ 32. Qxg4 g5 33. hxg6 $18) (31... Qxh5+ 32. Kg1 $16) 32. f3 $11 (32. Re1 R7c5 $17)) 31... Qd7 {[%emt 0:06:24] [#]} (31... Nxg4+ $6 32. Qxg4 Qd8 33. d6 $16 (33. Qxe6 Re7 $15) (33. dxe6 Qf8 $18)) 32. Re1 {[%emt 0:07:47]} exd5 {[%emt 0:01:35]} (32... e5 $6 33. Rxe5 R3c4 (33... Qxg4 $2 34. Re8+ Ng8 35. Qxg4 $18) (33... Nxg4+ $2 34. Qxg4 Qd6 35. Qf4 $18) 34. Be4 $11 (34. Qxc4 $2 Qd6 $19)) (32... Nxg4+ $142 33. Qxg4 Qxd5 (33... exd5 34. Qxd7) 34. Qxe6 Qxe6 35. Rxe6 Rc8) 33. Rg3 $17 {[%emt 0:04:53]} (33. Re8+ $2 Qxe8 34. Bxe8 R7c4 $19 (34... R3c4 35. Qd6 $15)) 33... Rxg3 {[%emt 0:02:18]} 34. Re8+ {[%emt 0:05:29]} Qxe8 $1 {[%emt 0:00:01]} 35. Bxe8 {[%emt 0:00:06]} Rgc3 {[%emt 0:00:52]} 36. Bb5 {[%emt 0:00:04] Wards off R7c4} (36. f3 $17) 36... Kg8 {[%emt 0:02:08]} (36... Nxh5 37. Qf8+ Kh7 38. Bd7 $11) 37. Qf5 {[%emt 0:01:06]} Re7 {[%emt 0:00:20]} ({Better is} 37... d4 $19 {Threatens to win with ...R7c5.} 38. Ba4 d3) 38. f3 {[%emt 0:02:20]} Rc5 {[%emt 0:00:37]} 39. a4 {[%emt 0:00:04]} d4 {[%emt 0:00:18]} 40. Qf4 {[%emt 0:00:06]} Rxh5+ {[%emt 0:01:11]} 41. Kg1 {[%emt 0:50:01]} Rhe5 {[%emt 0:26:30]} 42. Qxd4 {[%emt 0:00:00]} g6 {[%emt 0:01:02]} 43. f4 {[%emt 0:00:00]} Re1+ {[%emt 0:00:40]} 44. Kf2 {[%emt 0:00:00]} Kg7 {[%emt 0:00:56]} 45. Bc6 {[%emt 0:00:00] Against R1e4} R1e2+ {[%emt 0:03:53]} 46. Kg3 {[%emt 0:00:00]} Rc2 {[%emt 0:02:14]} 47. Bf3 {[%emt 0:00:00]} Rc5 {[%emt 0:00:23]} 48. Qd6 {[%emt 0:00:00]} Rf7 {[%emt 0:00:49]} 49. Kh2 {[%emt 0:00:00]} h5 {[%emt 0:01:40]} 50. Qe6 {[%emt 0:00:00] Repels Rc4} (50. Kh3 $17 {might work better.}) 50... Rf5 $19 {[%emt 0:00:48]} 51. Kg3 {[%emt 0:00:00] [#]} h4+ $1 {[%emt 0:05:51]} 52. Kxh4 {[%emt 0:00:00]} (52. Kh3 Rxf4) 52... Rxf4+ {[%emt 0:00:04]} 53. Kh3 {[%emt 0:00:00]} Rxa4 {[%emt 0:00:20]} 54. g4 {[%emt 0:00:00]} g5 {[%emt 0:01:46]} 55. Bd1 {[%emt 0:00:00]} Ra3+ {[%emt 0:00:47]} 56. Kg2 {[%emt 0:00:00]} Rd7 {[%emt 0:00:11]} 57. Kf2 {[%emt 0:00:00]} Ra5 {[%emt 0:05:49]} (57... Rxd1 58. Qe7+ Kg6 59. Qxa3 $11) 58. Ke2 {[%emt 0:00:00]} (58. Bf3) 58... Rad5 {[%emt 0:00:44] ( -> ...Rd2+)} 59. Bb3 {[%emt 0:00:00]} Rd4 {[%emt 0:00:37]} 60. Kf1 {[%emt 0:00:00]} Rf4+ {[%emt 0:00:27]} ({Not} 60... Nxg4 61. Qg8+ Kh6 62. Qh8+ Kg6 63. Qe8+ Kf6 64. Qe6+ Kg7 65. Qg8+ Kf6 66. Qe6+ Kg7 $11) 61. Kg1 {[%emt 0:00:00]} Rxg4+ {[%emt 0:00:06]} 62. Kh1 {[%emt 0:00:00]} Re4 {[%emt 0:00:39]} 63. Qf5 {[%emt 0:00:00]} Re1+ {[%emt 0:00:00] Weighted Error Value: White=0.33/Black=0.12 (very precise)   Mistake:       	White=4     	Black=2      Inaccurate:     	White=5     	Black=2      OK:         	White=20    	Black=24     Best:        	White=3     	Black=4      Strong:       	---       	Black=1} 0-1

[Event "4NCL Div 1 2024-25"]
[Site "England"]
[Date "2025.01.26"]
[Round "4.12"]
[White "Derakhshani, Borna"]
[Black "Parligras, Mircea-Emilian"]
[Result "1/2-1/2"]
[Annotator "TA"]
[ECO "B92"]
[WhiteElo "2355"]
[BlackElo "2528"]
[PlyCount "38"]
[EventDate "2024.11.23"]
[EventType "team-tourn"]
[EventCountry "ENG"]
[SourceTitle "playchess.com"]
[Source "ChessBase"]
[SourceQuality "1"]
[TimeControl "40/6000+30:3000+30"]

{[%evp 24,38,0,0,26,24,17,15,11,0,8,10,18,0,6,0,27]} 1. e4 {[%emt 0:13:16]} c5 {[%emt 0:10:16]} 2. Nf3 {[%emt 0:00:07]} d6 {[%emt 0:00:07]} 3. d4 {[%emt 0:00:03]} cxd4 {[%emt 0:00:14]} 4. Nxd4 {[%emt 0:00:05]} Nf6 {[%emt 0:00:07]} 5. Nc3 {[%emt 0:00:03]} a6 {[%emt 0:00:09]} 6. Be2 {[%emt 0:00:18]} e5 {[%emt 0:00:17]} 7. Nb3 {[%emt 0:00:04]} Be7 {[%emt 0:00:10]} 8. Be3 {[%emt 0:00:08]} Be6 {[%emt 0:00:21]} 9. Nd5 {[%emt 0:00:04]} Nbd7 {[%emt 0:00:12]} 10. Qd3 {[%emt 0:00:05]} O-O {[%emt 0:00:47]} 11. O-O {[%emt 0:01:39]} Bxd5 {[%emt 0:00:31]} 12. exd5 {[%emt 0:00:05]} Rc8 {[%emt 0:00:23]} 13. c4 {[%emt 0:00:45]} a5 $1 {[%emt 0:00:28][%mdl 4] is currently scoring better than 13...Ne8. B92: Sicilian Najdorf: 6 Be2.} 14. Rac1 {[%emt 0:04:56]} g6 {[%emt 0:02:48]} 15. Bh6 {[%emt 0:03:03] The position is equal.} Re8 {[%emt 0:00:58]} 16. Qh3 {[%emt 0:07:33]} Bf8 {[%emt 0:16:27]} 17. Bg5 {[%emt 0:02:57] Bg4 is in the air} Be7 {[%emt 0:11:42]} 18. Bh6 $146 {[%emt 0:06:43]} (18. Be3 a4 19. Nd2 h5 20. b4 axb3 21. axb3 Nh7 22. Rcd1 Kg7 23. Ne4 f5 24. Bxh5 gxh5 25. Qxf5 Ndf6 26. Nxf6 Bxf6 27. Qxh5 {½-½ Refalo,J (2312)-Darnaux,P (2253) FRA-ch 2023 email}) 18... Bf8 {[%emt 0:12:09]} 19. Bg5 {[%emt 0:00:33]} Be7 {[%emt 0:08:27] Not much happened in this game.   Weighted Error Value: White=0.06 (flawless) /Black=0.07 (flawless)   OK:         	---       	Black=2      Best:        	---       	Black=1} 1/2-1/2

[Event "4NCL Div 1 2024-25"]
[Site "England"]
[Date "2025.01.26"]
[Round "4.13"]
[White "Grieve, Harry"]
[Black "O`Donnell, Conor"]
[Result "1-0"]
[Annotator "TA"]
[ECO "C43"]
[WhiteElo "2464"]
[BlackElo "2293"]
[PlyCount "49"]
[EventDate "2024.11.23"]
[EventType "team-tourn"]
[EventCountry "ENG"]
[SourceTitle "playchess.com"]
[Source "ChessBase"]
[SourceQuality "1"]
[TimeControl "40/6000+30:3000+30"]

{[%evp 9,49,6,27,4,30,26,38,31,34,38,33,39,68,58,54,58,39,44,55,50,51,4,4,10,14,10,109,119,108,114,371,359,381,353,706,676,716,707,702,727,709,701]} 1. e4 {[%emt 0:10:01]} e5 {[%emt 0:20:29]} 2. Nf3 {[%emt 0:00:05]} Nf6 {[%emt 0:00:07]} 3. d4 {[%emt 0:00:03]} Nxe4 {[%emt 0:00:28]} 4. dxe5 {[%emt 0:00:04]} d5 {[%emt 0:00:30]} 5. Nbd2 {[%emt 0:00:04]} Qd7 {[%emt 0:00:38]} 6. Nd4 {[%emt 0:00:05] C43: Petroff Defence: 3 d4.} Nc6 $146 {[%emt 0:10:28] [#]} (6... Qe7 7. N2f3 Nd7 8. Nb5 Nb6 9. Bd3 a6 10. Nc3 Bg4 11. O-O O-O-O 12. h3 Bh5 13. Qe2 {0-1 Erigaisi,A (2738)-Bu,X (2671) Shenzhen Longgang 5th 2024 (2)}) 7. e6 $1 {[%emt 0:00:05]} fxe6 {[%emt 0:01:20]} 8. Nxc6 {[%emt 0:00:54] White is slightly better.} bxc6 {[%emt 0:05:18]} 9. Nxe4 {[%emt 0:00:04]} dxe4 {[%emt 0:00:11]} 10. Qh5+ {[%emt 0:00:03] White sacrificed a pawn} g6 {[%emt 0:08:20]} 11. Qe5 {[%emt 0:00:22][%csl LRe4,LRh8]} Bg7 {[%emt 0:00:11]} 12. Qxe4 {[%emt 0:00:07]} Qd5 {[%emt 0:07:14] Against Bc4} 13. Bd3 {[%emt 0:01:55][%cal Bf1d3,Bd3c2,Bc2e4,Be4c6][%mdl 32] A sharp opening} O-O {[%emt 0:02:00]} 14. O-O {[%emt 0:05:56]} Rb8 {[%emt 0:17:17]} 15. c3 {[%emt 0:13:07]} (15. Qe2 $14) 15... Rd8 $11 {[%emt 0:09:28]} 16. Bc2 {[%emt 0:00:14] Black should prevent Qa4.} Ba6 {[%emt 0:00:36] And now ...Qxe4 would win.} (16... Qxe4 {simplifies} 17. Bxe4 Ba6 18. Re1 c5) 17. Re1 {[%emt 0:00:49]} Bc4 {[%emt 0:01:21]} (17... Qxe4 $11 18. Bxe4 (18. Rxe4 Bd3 $14) 18... c5) 18. Qg4 $16 {[%emt 0:06:06]} Bxa2 {[%emt 0:23:34]} 19. h4 {[%emt 0:09:44][%cal Bh2h4,Bh4h5,Bh5g6][%mdl 32]} a6 $2 {[%emt 0:00:00][%mdl 8192] A mistake that costs the game.} (19... Bb3 $16) 20. Be4 $18 {[%emt 0:05:41]} Qc4 {[%emt 0:00:00]} 21. h5 {[%emt 0:00:05]} Rb5 $2 {[%emt 0:00:00]} (21... Bb3 22. Bg5 (22. hxg6 Rd1 $18) 22... Rd6 23. hxg6 hxg6) 22. hxg6 {[%emt 0:05:04] Threatens to win with Qh4. White is clearly winning.} h5 {[%emt 0:00:00]} 23. Qh4 {[%emt 0:02:53]} Rd7 {[%emt 0:00:00] [#]} 24. Rxa2 $1 {[%emt 0:05:05][%mdl 512]} Qxa2 {[%emt 0:00:00]} 25. Bxc6 {[%emt 0:00:18] Weighted Error Value: White=0.04 (flawless) /Black=0.56  Loses game:     	---       	Black=1      Mistake:       	White=1     	Black=2      Inaccurate:     	---       	Black=2      OK:         	White=11    	Black=7      Best:        	White=2     	---} 1-0